bitfinex-derivatives/quotes_SOLF0:USTF0_20260115
["timestamp","ask_amount","ask_price","bid_price","bid_amount"]
[1768441778491,0.04646857,145.03,145.0,0.04457575]
[1768441780189,0.04646857,145.03,144.98,11.89972967]
[1768441780790,11.73189298,145.08,144.98,14.5620946]
[1768441781691,11.73189298,145.08,145.02,0.0452693]
[1768441781892,17.93599298,145.08,145.02,0.0452693]
[1768441782798,0.04395297,145.06,145.02,0.0452693]
[1768441786002,6.204,145.09,145.02,11.94499897]
[1768441786201,6.204,145.09,145.02,13.60358051]
[1768441786710,6.204,145.09,145.02,11.89972967]
[1768441786999,6.204,145.09,145.04,0.0499651]
[1768441787204,0.04915501,145.07,145.04,0.0499651]
[1768441790707,11.65037071,145.07,145.0,19.51345175]
[1768441790894,11.6012157,145.07,145.0,19.51345175]
[1768441791401,11.6012157,145.07,145.01,17.80950091]
[1768441791803,0.04743755,145.05,145.03,0.04445043]
[1768441792708,6.2041,145.08,145.03,11.64695134]
[1768441793909,0.04779546,145.07,145.03,11.64695134]
[1768441797009,0.04779546,145.07,145.03,0.04445043]
[1768441797211,6.25239546,145.07,145.03,0.04445043]
[1768441797404,11.6012157,145.06,145.0,6.207]
[1768441797600,13.30506654,145.04,144.96,11.60250091]
[1768441797804,6.2062,145.03,144.96,17.81170091]
[1768441798508,0.04783626,145.01,144.98,0.04429085]
[1768441802616,0.04783626,145.01,144.96,11.60250091]
[1768441802617,17.85615196,145.01,144.94,13.30635175]
[1768441803311,0.04783626,145.01,144.95,11.60250091]
[1768441803716,0.04783626,145.01,144.97,0.04394441]
[1768441807620,0.04783626,145.01,144.97,11.64644532]
[1768441814418,0.04783626,145.01,144.97,17.85504532]
[1768441814625,1.70385084,145.04,144.98,11.60250091]
[1768441815636,0.04336472,145.02,145.0,0.04974358]
[1768441816728,12.9812157,145.01,144.94,11.60250091]
[1768441816927,1.70385084,144.99,144.94,11.60250091]
[1768441817718,1.70385084,144.99,144.92,11.60250091]
[1768441817719,0.04920999,144.98,144.92,11.60250091]
[1768441818833,0.04920999,144.98,144.94,0.04403187]
[1768441823041,1.75306083,144.98,144.94,0.04403187]
[1768441823251,0.04920999,144.98,144.94,0.04403187]
[1768441823455,1.75306083,144.98,144.94,0.04403187]
[1768441824652,12.38953678,144.97,144.9,11.87436174]
[1768441824853,14.09338762,144.96,144.9,11.87436174]
[1768441825048,20.30268762,144.96,144.9,11.87436174]
[1768441825254,14.09338762,144.96,144.9,11.87436174]
[1768441825654,0.0525536,144.94,144.92,0.05147008]
[1768441828051,0.0525536,144.94,144.9,11.87436174]
[1768441828957,0.0525536,144.94,144.91,0.05082692]
[1768441830053,0.0525536,144.94,144.87,89.37685084]
[1768441830657,6.2626536,144.94,144.87,87.673]
[1768441830857,18.65219038,144.94,144.87,81.46]
[1768441831162,18.65219038,144.94,144.89,0.04950542]
[1768441832658,6.2113,144.91,144.83,6.2145]
[1768441832863,6.2113,144.91,144.83,7.91835084]
[1768441833767,0.04568736,144.88,144.86,0.04689822]
[1768441834267,6.2113,144.91,144.86,0.04689822]
[1768441834960,6.2108,144.93,144.86,11.92125996]
[1768441835166,110.19618047,144.98,144.86,11.87436174]
[1768441835167,12.38953678,144.94,144.86,11.87436174]
[1768441835371,0.05026219,144.91,144.89,0.05133455]
[1768441835757,12.38953678,144.94,144.89,0.05133455]
[1768441836357,1.70385084,144.95,144.89,0.05133455]
[1768441836769,0.04534904,144.93,144.89,0.05133455]
[1768441838467,12.43488582,144.93,144.89,0.05133455]
[1768441838667,18.64548582,144.93,144.89,0.05133455]
[1768441838866,12.38953678,144.92,144.85,11.87436174]
[1768441839370,18.60053678,144.92,144.85,11.87436174]
[1768441839966,0.04813982,144.9,144.87,0.04558629]
[1768441840166,1.70385084,144.93,144.87,0.04558629]
[1768441840367,20.30368762,144.94,144.87,11.91994803]
[1768441840567,18.59983678,144.94,144.87,11.91994803]
[1768441841368,12.43713296,144.92,144.87,0.04558629]
[1768441842871,18.64823296,144.92,144.87,0.04558629]
[1768441843769,0.04759618,144.92,144.87,11.91994803]
[1768441843975,0.04759618,144.92,144.87,13.62379887]
[1768441844372,12.38953678,144.95,144.87,13.62379887]
[1768441844675,12.38953678,144.95,144.89,13.57821258]
[1768441845072,12.38953678,144.95,144.89,11.87436174]
[1768441845574,0.04660513,144.93,144.91,0.05162441]
[1768441846879,6.2095,144.96,144.91,0.05162441]
[1768441847268,12.38953678,145.01,144.92,18.08506174]
[1768441847476,12.38953678,145.01,144.92,11.87436174]
[1768441848177,12.43406788,144.98,144.92,11.87436174]
[1768441848879,18.64246788,144.98,144.92,11.87436174]
[1768441849077,12.43406788,144.98,144.94,0.04536574]
[1768441849776,0.0445311,144.98,144.94,0.04536574]
[1768441850678,12.84515635,144.98,144.94,0.04536574]
[1768441851769,19.05355635,144.98,144.94,0.04536574]
[1768441852774,12.80062525,144.96,144.88,18.51934195]
[1768441852976,12.80062525,144.96,144.89,12.30704195]
[1768441853782,0.04832143,144.94,144.91,0.04552878]
[1768441854183,19.01002525,144.96,144.91,0.04552878]
[1768441855280,0.04863785,144.95,144.91,0.04552878]
[1768441857081,6.2086,144.98,144.91,12.35257073]
[1768441857279,12.80062525,144.99,144.91,12.35257073]
[1768441858184,0.04521225,144.96,144.91,12.35257073]
[1768441858386,12.80062525,144.99,144.91,12.35257073]
[1768441858788,19.00852525,144.99,144.92,12.30704195]
[1768441859283,12.80062525,144.99,144.92,12.30704195]
[1768441859478,6.2074,145.01,144.94,12.35915716]
[1768441859685,19.00802525,145.01,144.94,12.35915716]
[1768441860490,0.05264083,144.99,144.94,12.35915716]
[1768441863383,0.05264083,144.99,144.94,18.56915716]
[1768441863882,0.05264083,144.99,144.95,6.2096]
[1768441864083,12.80062525,145.04,144.95,12.30704195]
[1768441864581,12.80062525,145.04,144.98,6.2083]
[1768441865182,12.80062525,145.04,145.0,0.04855248]
[1768441865490,0.05081607,145.02,145.0,0.04855248]
[1768441868579,21.67246985,145.07,145.0,0.04855248]
[1768441868787,19.00552525,145.07,145.0,12.35559443]
[1768441868983,12.80062525,145.08,145.01,12.30704195]
[1768441869484,12.80062525,145.08,144.97,96.5763]
[1768441869791,0.04978538,145.04,145.01,0.04419242]
[1768441869988,12.8498199,145.04,145.01,0.05250409]
[1768441870493,0.04919465,145.04,145.01,0.05250409]
[1768441874291,0.04919465,145.04,144.97,18.51554195]
[1768441874490,12.80062525,145.05,144.97,18.51554195]
[1768441874992,12.80062525,145.05,144.98,6.2083]
[1768441875194,12.80062525,145.05,144.98,12.30704195]
[1768441875396,0.04875876,145.03,145.0,0.04800965]
[1768441875592,12.80062525,145.07,145.0,12.3550516]
[1768441875792,12.80062525,145.07,145.0,12.30704195]
[1768441876094,12.80062525,145.07,145.01,6.207]
[1768441876294,12.80062525,145.07,145.01,18.51404195]
[1768441876792,6.2037,145.09,145.03,0.04397104]
[1768441876793,0.04991825,145.05,145.03,0.04397104]
[1768441882296,0.04991825,145.05,144.99,13.4653881]
[1768441883301,0.04991825,145.05,145.01,0.05041454]
[1768441884796,13.44629646,145.05,145.01,0.05041454]
[1768441886595,0.04991825,145.05,145.01,0.05041454]
[1768441886909,13.44629646,145.05,145.01,0.05041454]
[1768441887199,13.44629646,145.05,144.95,13.64127625]
[1768441887390,13.39637821,145.05,144.95,13.64127625]
[1768441888098,0.0478214,145.01,144.99,0.04683259]
[1768441888702,0.0478214,145.01,144.94,95.10127625]
[1768441888997,13.39637821,144.99,144.91,13.64127625]
[1768441889618,2.6669446,145.0,144.91,13.64127625]
[1768441889619,19.60477821,144.98,144.91,13.64127625]
[1768441890693,13.39637821,145.04,144.95,13.64127625]
[1768441890999,13.39637821,145.04,144.98,0.05069543]
[1768441891805,19.60307821,145.02,144.98,0.05069543]
[1768441892299,0.0465426,145.01,144.98,0.05069543]
[1768441895297,13.39637821,145.05,144.98,0.05069543]
[1768441896501,0.04753162,145.03,144.98,19.90017168]
[1768441897604,13.39637821,145.05,144.98,19.90017168]
[1768441897995,13.39637821,145.05,144.99,6.2078]
[1768441899004,13.39637821,145.09,145.0,13.64127625]
[1768441900298,13.39637821,145.09,145.03,0.05269191]
[1768441900603,0.04633139,145.06,145.03,0.05269191]
[1768441900803,0.04633139,145.06,145.03,6.25869191]
[1768441901202,13.39637821,145.09,145.03,6.25869191]
[1768441902306,0.04356058,145.07,145.03,6.25869191]
[1768441902905,0.04356058,145.07,145.03,19.89996816]
[1768441906013,0.04356058,145.07,145.03,13.69396816]
[1768441907906,13.39637821,145.1,145.03,13.69396816]
[1768441908816,13.39637821,145.1,145.03,19.90006816]
[1768441909016,0.02508341,145.08,145.03,13.69396816]
[1768441914920,13.04306341,145.08,145.03,0.05269191]
[1768441917224,0.02508341,145.08,145.03,13.40803238]
[1768441918820,13.04306341,145.08,145.03,0.05269191]
[1768441919022,13.01798,145.06,145.0,1.7033021]
[1768441919234,13.01798,145.06,144.99,13.35534047]
[1768441919724,19.22288,145.06,144.99,13.35534047]
[1768441920132,0.04937307,145.04,145.01,0.04412426]
[1768441921426,14.7212821,145.1,145.01,13.39946473]
[1768441921622,14.7212821,145.1,145.01,13.35534047]
[1768441922529,14.7212821,145.1,145.04,0.04452678]
[1768441922530,0.02840225,145.07,145.04,0.04452678]
[1768441934234,1.7033021,145.14,145.05,13.35534047]
[1768441934538,1.7033021,145.14,145.01,96.5542]
[1768441934539,14.7212821,145.14,145.06,15.05864257]
[1768441935340,14.7212821,145.14,145.09,0.04823413]
[1768441935839,19.22028,145.13,145.09,0.04823413]
[1768441936537,13.01798,145.13,145.09,0.04823413]
[1768441940048,13.01798,145.13,145.06,21.26354257]
[1768441941040,0.04823413,145.11,145.08,0.0483973]
[1768441945651,6.2016,145.14,145.08,14.51065429]
[1768441946851,19.49679328,145.14,145.08,14.51065429]
[1768441949154,13.29519328,145.18,145.08,16.21395639]
[1768441949445,14.99849538,145.18,145.12,0.04864984]
[1768441950450,13.29519328,145.18,145.12,0.04864984]
[1768441951547,13.29519328,145.18,145.12,14.51090683]
[1768441951843,13.29519328,145.2,145.12,16.21420893]
[1768441952048,13.29519328,145.2,145.15,0.04375376]
[1768441952346,1.7033021,145.21,145.15,0.04375376]
[1768441952744,19.49359328,145.22,145.15,14.50601075]
[1768441953257,13.29519328,145.22,145.15,14.50601075]
[1768441954844,6.1985,145.21,145.15,14.50601075]
[1768441955255,13.29519328,145.22,145.16,14.46225699]
[1768441956561,1.7033021,145.23,145.16,20.66275699]
[1768441956752,1.7033021,145.23,145.18,0.04708672]
[1768441959962,14.99849538,145.23,145.18,0.04708672]
[1768441960263,13.29519328,145.23,145.18,0.04708672]
[1768441962553,14.99849538,145.19,145.13,6.2017]
[1768441962754,14.99849538,145.19,145.12,14.46225699]
[1768441963354,0.04708672,145.17,145.14,0.04602287]
[1768441968259,13.34228,145.17,145.1,14.46225699]
[1768441969267,13.34228,145.17,145.12,0.04563957]
[1768441969765,19.54258,145.17,145.12,0.04563957]
[1768441975971,14.46572806,145.16,145.12,0.04563957]
[1768441978076,14.46572806,145.14,145.08,13.90090521]
[1768441978266,14.46572806,145.14,145.06,95.28090521]
[1768441978461,20.66722806,145.14,145.06,101.48580521]
[1768441979074,0.04412352,145.11,145.09,0.04696674]
[1768441980170,14.46572806,145.14,145.09,0.04696674]
[1768441981176,0.0520424,145.13,145.09,0.04696674]
[1768441984383,0.0520424,145.13,145.09,13.94787195]
[1768441984681,14.46572806,145.16,145.09,13.94787195]
[1768441985881,0.04258324,145.14,145.09,20.15147195]
[1768441992987,0.04258324,145.14,145.09,13.94787195]
[1768441994689,14.46572806,145.18,145.12,13.90090521]
[1768441995580,14.46572806,145.18,145.14,0.05310301]
[1768441996478,14.46572806,145.22,145.14,0.05310301]
[1768441997789,14.46572806,145.21,145.14,0.05310301]
[1768441998191,14.46572806,145.21,145.14,13.95400822]
[1768441998484,14.46572806,145.21,145.14,20.15530822]
[1768441999088,14.46572806,145.21,145.15,13.90090521]
[1768442004500,20.63665704,145.24,145.15,13.90090521]
[1768442004798,14.43905704,145.23,145.18,0.04627185]
[1768442008696,14.43905704,145.25,145.18,13.54561739]
[1768442009498,14.43905704,145.24,145.18,13.54561739]
[1768442011091,14.43905704,145.27,145.18,13.54561739]
[1768442011294,17.09724059,145.27,145.18,13.49934554]
[1768442012292,20.63595704,145.25,145.18,19.69914554]
[1768442012490,20.63595704,145.25,145.21,0.04541899]
[1768442013494,14.43905704,145.23,145.16,19.69964554]
[1768442014397,14.43905704,145.23,145.17,6.2002]
[1768442014597,0.04382209,145.21,145.19,0.0498175]
[1768442015300,14.43905704,145.25,145.19,0.0498175]
[1768442016401,0.04846868,145.23,145.19,0.0498175]
[1768442017898,14.48752572,145.23,145.19,0.0498175]
[1768442019499,14.48752572,145.23,145.16,13.49934554]
[1768442019900,14.48752572,145.23,145.17,6.2002]
[1768442020404,14.48752572,145.23,145.19,0.05234843]
[1768442031211,13.82217075,145.22,145.15,6.2006]
[1768442031407,13.82217075,145.22,145.15,7.90076553]
[1768442031713,13.82217075,145.22,145.15,22.34964763]
[1768442032215,13.82217075,145.22,145.16,6.2005]
[1768442032413,0.04723957,145.2,145.17,0.05054189]
[1768442034820,0.04723957,145.2,145.17,6.25064189]
[1768442038522,13.82217075,145.24,145.18,6.1997]
[1768442039418,0.05211559,145.22,145.18,6.1997]
[1768442039922,0.05211559,145.22,145.17,22.39978952]
[1768442040832,0.05211559,145.22,145.17,20.69962399]
[1768442041130,0.05211559,145.22,145.17,14.49942399]
[1768442041732,0.05211559,145.22,145.17,20.69962399]
[1768442043030,0.05211559,145.22,145.17,14.49942399]
[1768442043533,13.87428634,145.22,145.17,0.05054189]
[1768442046839,20.07248634,145.22,145.17,0.05054189]
[1768442047139,13.87428634,145.22,145.17,0.05054189]
[1768442053244,13.87428634,145.22,145.17,14.49942399]
[1768442053544,0.05211559,145.22,145.17,16.19958952]
[1768442054741,0.05211559,145.22,145.17,22.39978952]
[1768442055553,0.05211559,145.22,145.18,20.6485821]
[1768442055845,13.82217075,145.24,145.18,20.6485821]
[1768442056350,13.82217075,145.26,145.19,22.34804763]
[1768442056748,0.04369365,145.24,145.21,0.05167576]
[1768442073258,13.60892247,145.24,145.21,0.05167576]
[1768442079755,0.04369365,145.24,145.21,0.05167576]
[1768442080660,0.04369365,145.24,145.21,14.48451869]
[1768442081064,13.56522882,145.26,145.21,14.48451869]
[1768442086359,13.56522882,145.26,145.21,0.05167576]
[1768442099764,13.87960476,145.25,145.21,0.05167576]
[1768442101767,13.87960476,145.23,145.15,15.10033891]
[1768442102464,13.87960476,145.23,145.14,15.10033891]
[1768442102868,0.04365883,145.2,145.17,0.05036342]
[1768442106871,0.04365883,145.2,145.15,21.30133891]
[1768442106872,13.92326359,145.2,145.12,96.44033891]
[1768442107075,13.87960476,145.19,145.11,15.10033891]
[1768442107279,13.87960476,145.19,145.08,15.10033891]
[1768442107573,13.87960476,145.17,145.08,15.10033891]
[1768442107974,13.87960476,145.17,145.11,0.04387157]
[1768442109474,13.87960476,145.15,145.11,0.04387157]
[1768442109670,13.92787798,145.15,145.07,6.2042]
[1768442109870,13.92787798,145.15,145.07,21.30453891]
[1768442110674,13.92787798,145.15,145.1,0.04757923]
[1768442113774,13.92787798,145.15,145.06,81.34]
[1768442113775,13.87960476,145.14,145.06,6.2046]
[1768442114772,0.0447778,145.11,145.09,0.04605281]
[1768442115182,13.92438256,145.11,145.05,15.10033891]
[1768442116181,13.87960476,145.1,145.03,15.10033891]
[1768442117380,0.05003587,145.08,145.05,0.04509169]
[1768442121187,177.8386,145.16,145.05,15.05127028]
[1768442121188,14.49446061,145.13,145.05,15.05127028]
[1768442121386,14.49446061,145.13,145.05,15.00617859]
[1768442121586,14.49446061,145.13,145.05,21.21137859]
[1768442122295,0.04775106,145.1,145.08,0.05244947]
[1768442122497,0.05160283,145.1,145.08,0.05244947]
[1768442124399,13.79800745,145.14,145.08,14.47920746]
[1768442125296,0.04356536,145.12,145.08,14.47920746]
[1768442125795,0.04356536,145.12,145.09,6.2035]
[1768442126298,0.04356536,145.12,145.08,14.47920746]
[1768442130402,13.84157281,145.12,145.05,14.42675799]
[1768442131501,13.84157281,145.12,145.07,0.05143207]
[1768442131905,20.04397281,145.12,145.07,0.05143207]
[1768442136011,13.79800745,145.11,145.07,0.05143207]
[1768442137015,13.79800745,145.1,145.03,14.42675799]
[1768442137612,13.79800745,145.1,145.02,87.6063]
[1768442137912,13.79800745,145.1,145.02,102.03305799]
[1768442138306,0.04576785,145.07,145.05,0.04751138]
[1768442138906,13.8437753,145.07,145.02,6.2063]
[1768442139811,13.8437753,145.07,145.03,0.04661968]
[1768442142009,13.79800745,145.05,144.97,14.42675799]
[1768442142612,13.79800745,145.05,144.98,20.63495799]
[1768442143118,0.04757736,145.03,145.0,0.04640843]
[1768442145717,13.79800745,145.05,145.0,0.04640843]
[1768442146719,0.04679889,145.04,145.0,0.04640843]
[1768442147919,0.04679889,145.04,145.0,14.47316642]
[1768442148221,13.79800745,145.11,145.02,14.42675799]
[1768442149118,13.79800745,145.11,145.05,0.0462184]
[1768442149316,20.00100745,145.11,145.05,0.0462184]
[1768442149519,13.79800745,145.11,145.05,0.0462184]
[1768442151023,0.05155438,145.09,145.05,0.0462184]
[1768442152222,0.05155438,145.09,145.05,6.2515184]
[1768442153419,13.71169516,145.13,145.05,15.07024676]
[1768442153610,13.71169516,145.17,145.08,16.72710368]
[1768442154222,13.71169516,145.17,145.1,1.70307532]
[1768442154421,13.71169516,145.17,145.1,22.93020368]
[1768442154718,0.05156735,145.15,145.12,0.04995385]
[1768442163226,129.4896,145.25,145.13,21.22572836]
[1768442163227,13.71169516,145.19,145.13,21.22572836]
[1768442163414,13.71169516,145.19,145.14,1.70307532]
[1768442163620,13.71169516,145.21,145.14,16.72710368]
[1768442164217,0.0462513,145.19,145.16,0.0448252]
[1768442173325,13.75794646,145.19,145.12,15.02402836]
[1768442173632,13.71169516,145.19,145.12,15.02402836]
[1768442174432,0.04899186,145.17,145.14,0.05144698]
[1768442179135,0.04899186,145.17,145.14,15.07547534]
[1768442179437,19.91049516,145.21,145.14,15.07547534]
[1768442179636,19.91049516,145.21,145.14,21.27697534]
[1768442179836,13.71169516,145.2,145.14,21.27697534]
[1768442180038,13.71169516,145.19,145.14,0.05144698]
[1768442180235,0.04875919,145.18,145.14,0.05144698]
[1768442180634,14.48902734,145.18,145.14,0.05144698]
[1768442185141,14.04872742,145.16,145.1,14.95323611]
[1768442186041,0.04801098,145.14,145.12,0.05237322]
[1768442189048,14.0967384,145.14,145.08,14.95323611]
[1768442189945,20.2982384,145.14,145.1,0.04559652]
[1768442190544,14.0967384,145.14,145.1,0.04559652]
[1768442197850,15.75180274,145.13,145.05,21.15843611]
[1768442198851,0.0508938,145.1,145.08,0.04682405]
[1768442205448,14.04872742,145.12,145.08,0.04682405]
[1768442206456,0.04512487,145.11,145.08,0.04682405]
[1768442212750,14.04872742,145.12,145.08,0.04682405]
[1768442212949,20.65859292,145.14,145.08,0.04682405]
[1768442213662,0.04712913,145.12,145.08,0.04682405]
[1768442216460,14.50422205,145.12,145.08,0.04682405]
[1768442217766,20.70652205,145.12,145.08,0.04682405]
[1768442219163,14.45709292,145.11,145.08,0.04682405]
[1768442219565,14.45709292,145.1,145.03,14.66675869]
[1768442220563,0.04496798,145.08,145.05,0.05246411]
[1768442223567,14.5020609,145.08,145.05,0.05246411]
[1768442223772,14.5020609,145.08,145.01,14.66675869]
[1768442224868,14.5020609,145.08,145.03,0.04442783]
[1768442230173,14.5020609,145.08,145.03,6.25052783]
[1768442231474,14.5020609,145.08,145.03,0.04442783]
[1768442232369,20.7061609,145.08,145.03,0.04442783]
[1768442232676,14.45709292,145.07,145.0,6.2072]
[1768442233775,0.04377615,145.05,145.02,0.04580993]
[1768442235877,14.45709292,145.09,145.03,14.66675869]
[1768442236768,14.45709292,145.09,145.03,20.87265869]
[1768442236969,0.04611941,145.07,145.05,0.05154504]
[1768442237669,14.45709292,145.11,145.05,6.25684504]
[1768442237870,14.45709292,145.11,145.05,0.05154504]
[1768442238766,2.66020707,145.12,145.05,0.05154504]
[1768442238767,0.04366782,145.09,145.05,0.05154504]
[1768442238970,14.50076074,145.09,145.05,0.05154504]
[1768442240377,20.70436074,145.09,145.05,0.05154504]
[1768442243182,14.47313642,145.08,145.05,0.05154504]
[1768442245080,0.04366782,145.09,145.05,0.05154504]
[1768442245580,14.47313642,145.12,145.05,14.37537899]
[1768442245975,14.47313642,145.11,145.05,14.37537899]
[1768442246780,0.05025124,145.09,145.05,14.37537899]
[1768442248778,0.05025124,145.09,145.05,20.58067899]
[1768442249084,14.47313642,145.11,145.05,20.58067899]
[1768442250287,0.04487168,145.09,145.05,20.58067899]
[1768442252093,14.47313642,145.11,145.05,20.58067899]
[1768442255296,0.04465745,145.09,145.05,20.58067899]
[1768442258191,20.67503642,145.13,145.06,14.32383395]
[1768442259197,14.47313642,145.12,145.08,0.04961304]
[1768442260393,14.47313642,145.14,145.08,14.37344699]
[1768442260598,14.47313642,145.18,145.1,14.37686667]
[1768442260989,14.47313642,145.17,145.1,14.37686667]
[1768442261299,14.47313642,145.17,145.1,14.32383395]
[1768442261694,14.47313642,145.17,145.12,0.05156512]
[1768442261892,20.67333642,145.17,145.12,0.05156512]
[1768442262389,14.47313642,145.16,145.07,14.32383395]
[1768442262894,20.67383642,145.16,145.09,14.32383395]
[1768442263596,0.04487442,145.14,145.11,0.04991823]
[1768442266801,14.47313642,145.18,145.11,14.37375218]
[1768442266995,14.47313642,145.18,145.11,14.32383395]
[1768442267595,14.47313642,145.18,145.12,6.2023]
[1768442267901,14.47313642,145.18,145.14,0.04647241]
[1768442271001,20.67293642,145.18,145.14,0.04647241]
[1768442271200,14.47313642,145.18,145.1,6.2031]
[1768442272310,14.47313642,145.18,145.1,20.00493148]
[1768442272610,0.05153911,145.15,145.13,0.04993809]
[1768442278609,0.05153911,145.15,145.07,81.4]
[1768442278610,14.54038751,145.15,145.08,20.00543148]
[1768442279316,14.4888484,145.14,145.06,15.50359191]
[1768442279614,0.04349345,145.11,145.09,0.0504978]
[1768442279915,14.4888484,145.14,145.09,0.0504978]
[1768442281010,0.04735226,145.13,145.09,0.0504978]
[1768442282016,14.53620066,145.13,145.09,0.0504978]
[1768442282226,1.70176043,145.16,145.09,13.85232928]
[1768442282515,1.70176043,145.16,145.09,20.05572928]
[1768442283119,16.19060883,145.16,145.09,20.05572928]
[1768442283315,16.19060883,145.16,145.1,13.80183148]
[1768442283523,22.39120883,145.16,145.1,13.80183148]
[1768442284823,14.4888484,145.15,145.09,6.2538978]
[1768442286924,16.19060883,145.17,145.1,20.00493148]
[1768442287125,16.19060883,145.17,145.12,0.04485603]
[1768442287328,22.39100883,145.17,145.12,0.04485603]
[1768442287526,14.4888484,145.16,145.12,0.04485603]
[1768442291226,14.4888484,145.16,144.97,306.67455998]
[1768442291420,16.19060883,145.12,145.04,13.80183148]
[1768442291933,16.19060883,145.12,145.04,15.50359191]
[1768442292520,16.19060883,145.12,145.07,0.04781514]
[1768442293736,0.04794668,145.11,145.07,0.04781514]
[1768442296435,14.53679508,145.11,145.07,0.04781514]
[1768442302146,20.73959508,145.11,145.07,0.04781514]
[1768442310152,14.53679508,145.11,145.07,0.04781514]
[1768442320474,14.12488713,145.09,145.03,14.74921886]
[1768442321370,0.05157743,145.07,145.05,0.05000159]
[1768442328064,14.12488713,145.09,145.05,0.05000159]
[1768442328876,22.02944756,145.11,145.05,0.05000159]
[1768442329271,0.04445663,145.09,145.05,0.05000159]
[1768442331073,14.06693779,145.13,145.07,14.79030292]
[1768442331278,14.06693779,145.13,145.07,16.49206335]
[1768442331474,20.26833779,145.15,145.07,16.49206335]
[1768442332082,20.26833779,145.15,145.1,0.05042014]
[1768442333084,14.06693779,145.14,145.1,0.05042014]
[1768442335179,20.26873779,145.14,145.1,0.05042014]
[1768442335979,20.3175581,145.13,145.07,14.79030292]
[1768442337178,20.3175581,145.13,145.09,0.05060255]
[1768442344892,14.1155581,145.13,145.09,0.05060255]
[1768442354007,0.04862031,145.13,145.09,14.84090547]
[1768442354203,14.06693779,145.17,145.09,14.84090547]
[1768442354502,177.8292,145.23,145.09,17.45005782]
[1768442354702,8.21425652,145.22,145.09,17.45005782]
[1768442355004,2.6597549,145.22,145.09,17.45005782]
[1768442355200,2.6597549,145.22,145.14,0.04744867]
[1768442355803,8.8580549,145.22,145.14,0.04744867]
[1768442356403,14.06693779,145.21,145.14,0.04744867]
[1768442359905,20.26563779,145.21,145.14,0.04744867]
[1768442360107,14.06693779,145.2,145.14,0.04744867]
[1768442361311,14.5077177,145.19,145.14,0.04744867]
[1768442363217,13.69684134,145.18,145.14,0.04744867]
[1768442371625,13.69684134,145.2,145.14,14.8602278]
[1768442372326,13.69684134,145.2,145.14,0.04744867]
[1768442376227,13.69684134,145.2,145.14,14.8602278]
[1768442399739,14.86940678,145.19,145.14,0.04744867]
[1768442400236,16.57036619,145.19,145.14,0.04744867]
[1768442400441,14.86940678,145.16,145.04,14.84026626]
[1768442400741,16.57036619,145.15,145.08,14.84026626]
[1768442401339,16.57036619,145.15,145.09,14.84026626]
[1768442401534,0.04798675,145.13,145.1,0.04655598]
[1768442401738,14.86940678,145.15,145.1,14.88682224]
[1768442402240,14.86940678,145.17,145.1,14.88682224]
[1768442404437,21.06960678,145.17,145.1,14.88682224]
[1768442404638,14.86940678,145.16,145.1,14.88682224]
[1768442406637,16.57036619,145.16,145.1,0.04655598]
[1768442407843,22.77116619,145.16,145.1,0.04655598]
[1768442408045,14.86940678,145.15,145.1,0.04655598]
[1768442410943,14.86940678,145.13,145.06,14.84026626]
[1768442412145,14.86940678,145.13,145.08,0.04434591]
[1768442412346,0.0460643,145.11,145.08,0.04434591]
[1768442413748,16.57036619,145.15,145.08,14.88461217]
[1768442414047,16.57036619,145.15,145.08,21.08861217]
[1768442414445,14.86940678,145.15,145.08,21.08861217]
[1768442416551,14.86940678,145.13,145.08,0.04434591]
[1768442416857,14.86940678,145.13,145.09,0.04979777]
[1768442417748,16.57036619,145.16,145.09,14.89006403]
[1768442417953,16.57036619,145.16,145.09,14.84026626]
[1768442418156,16.57036619,145.16,145.11,0.05038942]
[1768442418358,14.86940678,145.16,145.11,0.05038942]
[1768442419664,14.86940678,145.22,145.11,14.89065568]
[1768442419970,16.57036619,145.19,145.15,0.04639495]
[1768442420168,14.86940678,145.19,145.16,0.0466189]
[1768442422272,14.86940678,145.19,145.13,14.84026626]
[1768442423172,16.57036619,145.19,145.11,13.99052338]
[1768442423365,198.5021,145.23,145.11,13.99052338]
[1768442423366,16.16749728,145.17,145.11,13.99052338]
[1768442424473,16.16749728,145.17,145.13,0.04625242]
[1768442426468,14.46653787,145.17,145.13,0.04625242]
[1768442426973,14.46653787,145.19,145.13,0.04625242]
[1768442427272,0.0498674,145.17,145.13,14.0367758]
[1768442434068,0.0498674,145.17,145.14,1.70095941]
[1768442434269,14.46653787,145.19,145.14,15.69148279]
[1768442435463,14.46653787,145.19,145.14,13.99052338]
[1768442435665,14.46653787,145.19,145.13,0.04625242]
[1768442436771,14.46653787,145.19,145.13,14.0367758]
[1768442439672,14.46653787,145.19,145.13,20.2386758]
[1768442442880,0.05081805,145.17,145.13,20.2386758]
[1768442443577,22.36599728,145.21,145.14,20.19202338]
[1768442444480,14.46653787,145.2,145.14,13.99052338]
[1768442444781,14.46653787,145.2,145.16,0.04490655]
[1768442445184,14.46653787,145.2,145.12,13.99052338]
[1768442445885,14.46653787,145.2,145.13,6.2019]
[1768442446279,0.04537582,145.18,145.15,0.04680211]
[1768442451785,14.46653787,145.2,145.15,0.04680211]
[1768442464503,14.46653787,145.2,145.15,6.24780211]